lending/lending_fUSD_20240111
["ID","MTS","AMOUNT","RATE_DAILY","PERIOD"]
[311212788,1704983469041,-860.27,0.00042739,30]
[311212789,1704983469051,-153.84,0.0004274,2]
[311212790,1704983469062,-150.0,0.00042744,2]
[311212791,1704983469073,-544.218,0.00042748,2]
[311212792,1704983469083,-150.0,0.00042751,2]
[311212793,1704983469098,-2003.68,0.00042785,2]
[311212794,1704983469107,-1871.62,0.000428,7]
[311212795,1704983469117,-150.0,0.000428,18]
[311212796,1704983469127,-1297.454311,0.000428,7]
[311212797,1704983469137,-1037.9634488,0.000428,7]
[311212798,1704983469146,-150.0,0.00042803,2]
[311212799,1704983469155,-1502.56943109,0.00042853,11]
[311212800,1704983469164,-150.0,0.00042866,2]
[311212801,1704983469173,-250.0,0.0004287,3]
[311212802,1704983469183,-300.0,0.0004287,3]
[311212803,1704983469192,-316.0,0.0004287,120]
[311212804,1704983469202,-242.0,0.0004287,120]
[311212805,1704983469211,-150.0,0.0004287,120]
[311212806,1704983469220,-449.0,0.0004287,120]
[311212807,1704983469229,-220.0,0.0004287,120]
[311212808,1704983469239,-344.0,0.0004287,120]
[311212809,1704983469248,-208.0,0.0004287,120]
[311212810,1704983469257,-457.0,0.0004287,120]
[311212811,1704983469266,-316.0,0.0004288,120]
[311212812,1704983469275,-150.0,0.0004288,120]
[311212813,1704983469285,-242.0,0.0004288,120]
[311212814,1704983469294,-344.0,0.0004288,120]
[311212815,1704983469303,-449.0,0.0004288,120]
[311212816,1704983469312,-220.0,0.0004288,120]
[311212817,1704983469321,-208.0,0.0004288,120]
[311212818,1704983469331,-457.0,0.0004288,120]
[311212819,1704983469340,-242.0,0.0004289,120]
[311212820,1704983469350,-316.0,0.0004289,120]
[311212821,1704983469361,-150.0,0.0004289,120]
[311212822,1704983469370,-344.0,0.0004289,120]
[311212823,1704983469379,-449.0,0.0004289,120]
[311212824,1704983469389,-229.25,0.0004289,120]
[311212825,1704983469399,-220.0,0.0004289,120]
[311212826,1704983469408,-208.0,0.0004289,120]
[311212827,1704983469417,-457.0,0.0004289,120]
[311212828,1704983469427,-3551.0,0.0004289,3]
[311212829,1704983469436,-3291.64435569,0.00042896,2]
[311212830,1704983469446,-209083.88993751,0.000429,10]
[311212831,1704983469458,-5706.10252597,0.000429,10]
[311212832,1704983469469,-10221.16517317,0.000429,10]
[311212833,1704983469480,-16188.24772307,0.000429,10]
[311212834,1704983469492,-12761.34459,0.000429,10]
[311212835,1704983469509,-10686.741002,0.000429,10]
[311212836,1704983469521,-504.57445119,0.000429,10]
[311212837,1704983469531,-3427.8129845,0.000429,10]
[311212838,1704983469543,-3249.45643433,0.000429,10]
[311212839,1704983469554,-6918.96696568,0.000429,10]
[311212840,1704983469566,-3191.29140712,0.000429,10]
[311212841,1704983469576,-2756.29854613,0.000429,10]
[311212842,1704983469588,-7759.14856539,0.000429,10]
[311212843,1704983469602,-4833.57718051,0.000429,10]
[311212844,1704983469613,-3713.56067954,0.000429,10]
[311212845,1704983469635,-500.0,0.00039178,4]
[311212846,1704983469644,-500.0,0.00039178,4]
[311212847,1704983469654,-905.02,0.000429,10]
[311212848,1704983469665,-593.73283148,0.000429,10]
[311212849,1704983469677,-1100.06823356,0.000429,10]
[311212850,1704983469688,-72108.77598832,0.000429,10]
[311212851,1704983469699,-45849.78644162,0.000429,10]
[311212852,1704983469710,-2366.40904607,0.000429,10]
[311212853,1704983469722,-3754.37388506,0.000429,10]
[311212854,1704983470130,-631.83436939,0.000429,10]
[311212855,1704983470419,-569.02450547,0.000429,10]
[311212856,1704983470431,-446.14741197,0.000429,10]
[311212857,1704983470442,-388.35687835,0.000429,10]
[311212858,1704983470454,-177503.7003426,0.000429,10]
[311212859,1704983470465,-1218.69677128,0.000429,10]
[311212860,1704983470476,-791.4759183,0.000429,10]
[311212861,1704983470487,-304.3136,0.000429,10]
[311212862,1704983470502,-1000.0,0.00037998,4]
[311212863,1704983470512,-93736.01717103,0.000429,10]
[311212864,1704983470523,-1586.7065,0.000429,10]
[311212865,1704983470534,-14291.81789272,0.000429,10]
[311212866,1704983470546,-5781.81103523,0.000429,10]
[311212867,1704983470558,-286.08556777,0.000429,10]
[311212868,1704983470586,-372.46435039,0.000429,10]
[311212869,1704983470600,-9523.2,0.000429,10]
[311212870,1704983470611,-217425.00334765,0.000429,10]
[311212871,1704983470620,-210.0,0.000429,2]
[311212872,1704983470629,-209.0,0.000429,2]
[311212873,1704983470639,-210.0,0.000429,2]
[311212874,1704983470648,-209.0,0.000429,2]
[311212875,1704983470658,-200.0,0.000429,15]
[311212876,1704983470668,-2048.0,0.000429,10]
[311212877,1704983470677,-5844.14,0.000429,7]
[311212878,1704983470686,-8259.38,0.000429,7]
[311212879,1704983470696,-155.038798,0.000429,17]
[311212880,1704983470705,-2048.0,0.000429,10]
[311212881,1704983470714,-1966.56789,0.000429,17]
[311212882,1704983470725,-1316.02495289,0.000429,2]
[311212883,1704983470734,-151.0,0.000429,14]
[311212884,1704983470743,-549.94021148,0.000429,14]
[311212885,1704983470759,-432.45199652,0.000429,14]
[311212886,1704983470769,-982.392208,0.000429,14]
[311212887,1704983470779,-269.287034,0.000429,14]
[311212888,1704983470788,-546.973364,0.000429,14]
[311212889,1704983470798,-546.973364,0.000429,14]
[311212890,1704983470808,-300.0,0.000429,18]
[311212891,1704983470818,-150.0,0.000429,36]
[311212892,1704983470827,-151.0,0.000429,14]
[311212893,1704983470837,-151.0,0.000429,14]
[311212894,1704983470849,-500.0,0.000429,6]
[311212895,1704983470859,-500.0,0.000429,6]
[311212896,1704983470868,-670.14705,0.000429,14]
[311212897,1704983470877,-670.14705,0.000429,14]
[311212898,1704983470887,-2048.0,0.000429,10]
[311212899,1704983470897,-9026.3724197,0.00042919,2]
[311212900,1704983470906,-406.9799266,0.00042919,2]
[311212901,1704983470916,-150.0,0.0004292,60]
[311212902,1704983470925,-5238.33447936,0.00042949,17]
[311212903,1704983470934,-2121.52,0.00042955,7]
[311212904,1704983470943,-2121.52,0.00042955,7]
[311212905,1704983470952,-316.0,0.0004297,120]
[311212906,1704983470962,-150.0,0.0004297,120]
[311212907,1704983470971,-242.0,0.0004297,120]
[311212908,1704983470980,-449.0,0.0004297,120]
[311212909,1704983470990,-220.0,0.0004297,120]
[311212910,1704983470999,-344.0,0.0004297,120]
[311212911,1704983471008,-208.0,0.0004297,120]
[311212912,1704983471017,-457.0,0.0004297,120]
[311212913,1704983471026,-199.47,0.0004297,120]
[311212914,1704983471035,-167.0,0.0004297,120]
[311212915,1704983471044,-150.0,0.0004297,120]
[311212916,1704983471053,-167.0,0.0004297,120]
[311212917,1704983471062,-151.0,0.00042971,14]
[311212918,1704983471071,-151.0,0.00042971,14]
[311212919,1704983471081,-151.0,0.00042971,14]
[311212920,1704983471090,-3460.72119016,0.0004298,30]
[311212921,1704983471101,-242.0,0.0004298,120]
[311212922,1704983471111,-316.0,0.0004298,120]
[311212923,1704983471120,-150.0,0.0004298,120]
[311212924,1704983471130,-449.0,0.0004298,120]
[311212925,1704983471139,-220.0,0.0004298,120]
[311212926,1704983471148,-344.0,0.0004298,120]
[311212927,1704983471158,-208.0,0.0004298,120]
[311212928,1704983471167,-242.0,0.0004298,120]
[311212929,1704983471177,-316.0,0.0004298,120]
[311212930,1704983471186,-449.0,0.0004298,120]
[311212931,1704983471195,-220.0,0.0004298,120]
[311212932,1704983471205,-344.0,0.0004298,120]
[311212933,1704983471214,-208.0,0.0004298,120]
[311212934,1704983471223,-457.0,0.0004298,120]
[311212935,1704983471232,-457.0,0.0004298,120]
[311212936,1704983471242,-150.0,0.0004298,120]
[311212937,1704983471251,-167.0,0.0004298,120]
[311212938,1704983471260,-150.0,0.0004298,120]
[311212939,1704983471269,-167.0,0.0004298,120]
[311212940,1704983471278,-258.65,0.0004298,120]
[311212941,1704983471288,-167.0,0.0004298,120]
[311212942,1704983471298,-534.62075644,0.0004298,16]
[311212943,1704983471341,-243.56944356,0.0004298,16]
[311212944,1704983471358,-9044.5158819,0.00042983,2]
[311212945,1704983471369,-407.7979767,0.00042983,2]
[311212946,1704983471379,-500.0,0.00042987,42]
[311212947,1704983471389,-200.0,0.00042987,22]
[311212948,1704983471401,-500.0,0.00042987,12]
[311212949,1704983471412,-500.0,0.00042987,4]
[311212950,1704983471422,-151.0,0.00042987,14]
[311212951,1704983471433,-500.0,0.0004299,60]
[311212952,1704983471443,-242.0,0.0004299,120]
[311212953,1704983471453,-316.0,0.0004299,120]
[311212954,1704983471463,-150.0,0.0004299,120]
[311212955,1704983471473,-449.0,0.0004299,120]
[311212956,1704983471484,-220.0,0.0004299,120]
[311212957,1704983471494,-344.0,0.0004299,120]
[311212958,1704983471504,-208.0,0.0004299,120]
[311212959,1704983471513,-242.0,0.0004299,120]
[311212960,1704983471523,-316.0,0.0004299,120]
[311212961,1704983471533,-449.0,0.0004299,120]
[311212962,1704983471542,-220.0,0.0004299,120]
[311212963,1704983471552,-344.0,0.0004299,120]
[311212964,1704983471563,-208.0,0.0004299,120]
[311212965,1704983471572,-457.0,0.0004299,120]
[311212966,1704983471582,-457.0,0.0004299,120]
[311212967,1704983471593,-150.0,0.0004299,120]
[311212968,1704983471610,-150.0,0.0004299,120]
[311212969,1704983471620,-167.0,0.0004299,120]
[311212970,1704983471630,-167.0,0.0004299,120]
[311212971,1704983471640,-150.0,0.0004299,120]
[311212972,1704983471650,-167.0,0.0004299,120]
[311212973,1704983471660,-151.65502897,0.0004299,7]
[311212974,1704983471671,-151.0,0.0004299,14]
[311212975,1704983471680,-277.018716,0.0004299,14]
[311212976,1704983471691,-151.0,0.0004299,14]
[311212977,1704983471700,-151.0,0.0004299,14]
[311212978,1704983471710,-151.0,0.0004299,14]
[311212979,1704983471720,-150.0,0.00042991,60]
[311212980,1704983471730,-188.65620545,0.00042998,60]
[311212981,1704983471740,-500.0,0.00042999,7]
[311212982,1704983471753,-500.0,0.00042999,7]
[311212983,1704983471763,-175.46014634,0.00042999,7]
[311212984,1704983471773,-191.26726521,0.00042999,7]
[311212985,1704983471782,-500.0,0.00042999,7]
[311212986,1704983471793,-164.14314744,0.00042999,7]
[311212987,1704983471803,-500.0,0.00042999,7]
[311212988,1704983471812,-500.0,0.00042999,7]
[311212989,1704983471821,-500.0,0.00042999,7]
[311212990,1704983471832,-500.0,0.00042999,7]
[311212991,1704983471842,-500.0,0.00042999,7]
[311212992,1704983471855,-500.0,0.00042999,7]
[311212993,1704983471865,-500.0,0.00042999,7]
[311212994,1704983471874,-500.0,0.00042999,7]
[311212995,1704983471884,-500.0,0.00042999,7]
[311212996,1704983471893,-500.0,0.00042999,7]
[311212997,1704983471902,-100000.0,0.00043,3]
[311212998,1704983471912,-151.0,0.00043,14]
[311212999,1704983471921,-696.52998266,0.00043,2]
[311213000,1704983471931,-2365.12954656,0.00043,15]
[311213001,1704983471941,-500.0,0.00043,5]
[311213002,1704983471952,-300.0,0.00043,44]
[311213003,1704983471962,-401.50876227,0.00043,45]
[311213004,1704983471971,-3599.99999999,0.00043,6]
[311213005,1704983471981,-185.13871106,0.00043,4]
[311213006,1704983471990,-20000.0,0.00043,120]
[311213007,1704983471999,-487.91983095,0.00043,20]
[311213008,1704983472009,-26012.84139668,0.00043,2]
[311213009,1704983472018,-511.0,0.00043,30]
[311213010,1704983472028,-50000.0,0.00043,30]
[311213011,1704983472037,-547.47,0.00043,5]
[311213012,1704983472047,-20000.0,0.00043,60]
[311213013,1704983472056,-1000.0,0.00043,120]
[311213014,1704983472066,-205.89968189,0.00043,30]
[311213015,1704983472076,-605.823194,0.00043,7]
[311213016,1704983472086,-968.57,0.00043013,30]
[311213017,1704983472098,-846.71,0.00043013,30]
[311213018,1704983472108,-505.5,0.00043013,30]
[311213019,1704983472118,-1458.29,0.00043013,30]
[311213020,1704983472127,-752.08,0.00043013,30]
[311213021,1704983472138,-350.92641908,0.00043013,30]
[311213022,1704983472148,-500.0,0.00043013,30]
[311213023,1704983472158,-981.28,0.00043013,30]
[311213024,1704983472169,-500.0,0.00043013,30]
[311213025,1704983472179,-660.19,0.00043013,30]
[311213026,1704983472189,-1453.5,0.00043013,30]
[311213027,1704983472199,-501.7,0.00043013,30]
[311213028,1704983472209,-628.47,0.00043013,30]
[311213029,1704983472218,-2588.6,0.00043013,5]
[311213030,1704983472228,-4816.19,0.00043013,30]
[311213031,1704983472238,-500.0,0.00043013,30]
[311213032,1704983472248,-500.0,0.00043013,30]
[311213033,1704983472257,-733.7,0.00043013,30]
[311213034,1704983472267,-500.0,0.00043013,30]
[311213035,1704983472277,-4054.85,0.00043013,30]
[311213036,1704983472287,-833.14,0.00043013,30]
[311213037,1704983472297,-500.0,0.00043013,30]
[311213038,1704983472306,-860.27,0.00043013,30]
[311213039,1704983472316,-400.0,0.00043068,120]
[311213040,1704983472326,-567.40111,0.00043098,8]
[311213041,1704983472336,-938.59,0.00043104,2]
[311213042,1704983472349,-150.46862198,0.0004311,18]
[311213043,1704983472359,-161.22144985,0.0004311,2]
[311213044,1704983472369,-301.93,0.00043147,2]
[311213045,1704983472379,-150.0,0.00043147,2]
[311213046,1704983472389,-150.0,0.00043147,2]
[311213047,1704983472398,-150.0,0.00043147,2]
[311213048,1704983472407,-150.0,0.00043147,2]
[311213049,1704983472417,-150.0,0.00043147,2]
[311213050,1704983472427,-150.0,0.00043147,2]
[311213051,1704983472436,-157.0,0.00043151,90]
[311213052,1704983472446,-161.11011516,0.00043162,7]
[311213053,1704983472455,-350.0,0.00043178,120]
[311213054,1704983472465,-632.74,0.00043213,2]
[311213055,1704983472475,-238.0,0.00043221,28]
[311213056,1704983472485,-2121.52,0.00043228,7]
[311213057,1704983472495,-2121.52,0.00043228,7]
[311213058,1704983472504,-968.57,0.00043287,30]
[311213059,1704983472514,-846.71,0.00043287,30]
[311213060,1704983472523,-505.5,0.00043287,30]
[311213061,1704983472533,-1458.29,0.00043287,30]
[311213062,1704983472542,-752.08,0.00043287,30]
[311213063,1704983472553,-500.0,0.00043287,30]
[311213064,1704983472563,-981.28,0.00043287,30]
[311213065,1704983472573,-500.0,0.00043287,30]
[311213066,1704983472582,-660.19,0.00043287,30]
[311213067,1704983472592,-1453.5,0.00043287,30]
[311213068,1704983472605,-501.7,0.00043287,30]
[311213069,1704983472614,-628.47,0.00043287,30]
[311213070,1704983472624,-2588.6,0.00043287,5]
[311213071,1704983472633,-4816.19,0.00043287,30]
[311213072,1704983472643,-306.92,0.00043287,30]
[311213073,1704983472653,-500.0,0.00043287,30]
[311213074,1704983472663,-733.7,0.00043287,30]
[311213075,1704983472672,-500.0,0.00043287,30]
[311213076,1704983472683,-4054.85,0.00043287,30]
[311213077,1704983472692,-833.14,0.00043287,30]
[311213078,1704983472702,-500.0,0.00043287,30]
[311213079,1704983472712,-860.27,0.00043287,30]
[311213080,1704983472721,-567.40111,0.00043298,8]
[311213081,1704983472731,-150.0,0.00043299,4]
[311213082,1704983472740,-150.0,0.00043299,4]
[311213083,1704983472753,-8338.85379457,0.000433,30]
[311213084,1704983472763,-500.0,0.000434,14]
[311213085,1704983472772,-2000.0,0.000434,2]
[311213086,1704983472782,-1000.0,0.000434,2]
[311213087,1704983472792,-1028.0,0.000434,7]
[311213088,1704983472801,-1000.0,0.000434,2]
[311213089,1704983472810,-5238.33447936,0.00043432,18]
[311213090,1704983472820,-301.14,0.00043445,2]
[311213091,1704983472829,-567.40111,0.00043498,8]
[311213092,1704983472838,-150.0,0.00043499,60]
[311213093,1704983472848,-164.0,0.000435,120]
[311213094,1704983472858,-1500.0,0.000435,60]
[311213095,1704983472868,-2121.52,0.00043501,7]
[311213096,1704983472877,-2121.52,0.00043501,7]
[311213097,1704983472887,-968.57,0.00043561,30]
[311213098,1704983472897,-846.71,0.00043561,30]
[311213099,1704983472906,-505.5,0.00043561,30]
[311213100,1704983472916,-1458.29,0.00043561,30]
[311213101,1704983472925,-752.08,0.00043561,30]
[311213102,1704983472935,-500.0,0.00043561,30]
[311213103,1704983472945,-981.28,0.00043561,30]
[311213104,1704983472955,-500.0,0.00043561,30]
[311213105,1704983472965,-660.19,0.00043561,30]
[311213106,1704983472974,-1453.5,0.00043561,30]
[311213107,1704983472984,-501.7,0.00043561,30]
[311213108,1704983472995,-628.47,0.00043561,30]
[311213109,1704983473004,-2588.6,0.00043561,5]
[311213110,1704983473015,-4816.19,0.00043561,30]
[311213111,1704983473025,-500.0,0.00043561,30]
[311213112,1704983473035,-733.7,0.00043561,30]
[311213113,1704983473045,-154.05586748,0.00043561,30]
[311213114,1704983473055,-4054.85,0.00043561,30]
[311213115,1704983473064,-833.14,0.00043561,30]
[311213116,1704983473074,-500.0,0.00043561,30]
[311213117,1704983473083,-860.27,0.00043561,30]
[311213118,1704983473094,-2000.0,0.0004357,7]
[311213119,1704983473107,-1111.90754576,0.00043599,7]
[311213120,1704983473117,-287.7,0.00043677,2]
[311213121,1704983473127,-521.92,0.00043696,2]
[311213122,1704983473137,-333.40111,0.00043698,8]
[311213123,1704983473147,-2692.68604528,0.000437,30]
[311213124,1704983473158,-161.11011518,0.00043721,7]
[311213125,1704983473168,-203.0,0.00043774,18]
[311213126,1704983473178,-2121.52,0.00043774,7]
[311213127,1704983473188,-2121.52,0.00043774,7]
[311213128,1704983473198,-17983.54109828,0.00043799,10]
[311213129,1704983473208,-791.66391734,0.000438,30]
[311213130,1704983473218,-1297.454311,0.000438,8]
[311213131,1704983473228,-1037.9634488,0.000438,8]
[311213132,1704983473237,-528.06749999,0.00043835,30]
[311213133,1704983473247,-500.0,0.00043835,30]
[311213134,1704983473257,-500.0,0.00043835,30]
[311213135,1704983473266,-968.57,0.00043835,30]
[311213136,1704983473276,-744.43,0.00043835,7]
[311213137,1704983473286,-846.71,0.00043835,30]
[311213138,1704983473296,-505.5,0.00043835,30]
[311213139,1704983473306,-1458.29,0.00043835,30]
[311213140,1704983473316,-752.08,0.00043835,30]
[311213141,1704983473326,-500.0,0.00043835,30]
[311213142,1704983473337,-981.28,0.00043835,30]
[311213143,1704983473349,-500.0,0.00043835,30]
[311213144,1704983473360,-660.19,0.00043835,30]
[311213145,1704983473370,-1453.5,0.00043835,30]
[311213146,1704983473380,-501.7,0.00043835,30]
[311213147,1704983473389,-628.47,0.00043835,30]
[311213148,1704983473399,-2588.6,0.00043835,5]
[311213149,1704983473409,-4816.19,0.00043835,30]
[311213150,1704983473419,-177.67,0.00043835,30]
[311213151,1704983473429,-733.7,0.00043835,30]
[311213152,1704983473439,-4054.85,0.00043835,30]
[311213153,1704983473449,-833.14,0.00043835,30]
[311213154,1704983473459,-500.0,0.00043835,30]
[311213155,1704983473469,-860.27,0.00043835,30]
[311213156,1704983473479,-400.0,0.00043836,120]
[311213157,1704983473489,-151.7,0.00043836,2]
[311213158,1704983473498,-2400.0,0.00043836,14]
[311213159,1704983473508,-500.0,0.00043836,14]
[311213160,1704983473517,-9062.659344,0.00043886,2]
[311213161,1704983473527,-1904.0,0.0004389,3]
[311213162,1704983473537,-153.84,0.00043895,2]
[311213163,1704983473546,-333.40111,0.00043898,8]
[311213164,1704983473555,-156.16880465,0.000439,2]
[311213165,1704983473565,-30010.2643396,0.000439,2]
[311213166,1704983473575,-48252.371885,0.000439,30]
[311213167,1704983473584,-2000.0,0.000439,10]
[311213168,1704983473595,-300.0,0.000439,20]
[311213169,1704983473606,-150.0,0.000439,48]
[311213170,1704983473616,-360.75273007,0.000439,2]
[311213171,1704983473626,-200.02,0.000439,10]
[311213172,1704983473635,-182.09,0.000439,10]
[311213173,1704983473645,-265.42,0.000439,10]
[311213174,1704983473655,-228.38,0.000439,10]
[311213175,1704983473665,-507.915023,0.000439,6]
[311213176,1704983473675,-507.915024,0.000439,6]
[311213177,1704983473685,-1235.66767552,0.000439,2]
[311213178,1704983473860,-866.782748,0.000439,2]
[311213179,1704983473872,-5353.58310578,0.000439,2]
[311213180,1704983473881,-1664.67723713,0.000439,2]
[311213181,1704983473890,-220.01602481,0.000439,2]
[311213182,1704983473901,-5238.33447936,0.00043916,18]
[311213183,1704983473911,-150.46862198,0.00043919,21]
[311213184,1704983473922,-150.0,0.0004392,60]
[311213185,1704983473931,-408.6160268,0.0004394,2]
[311213186,1704983473941,-4598.0,0.00043951,99]
[311213187,1704983473951,-9080.8028062,0.0004397,2]
[311213188,1704983473961,-9098.9462683,0.0004397,2]
[311213189,1704983473970,-409.4340769,0.0004397,2]
[311213190,1704983473980,-410.252127,0.0004397,2]
[311213191,1704983473990,-350.0,0.00043973,120]
[311213192,1704983474000,-429.42879978,0.0004398,120]
[311213193,1704983474010,-251.58,0.0004398,120]
[311213194,1704983474019,-319.65,0.0004398,120]
[311213195,1704983474029,-452.56,0.0004398,120]
[311213196,1704983474039,-223.95,0.0004398,120]
[311213197,1704983474048,-349.96,0.0004398,120]
[311213198,1704983474058,-216.29,0.0004398,120]
[311213199,1704983474067,-460.0,0.0004398,120]
[311213200,1704983474076,-168.97,0.0004398,120]
[311213201,1704983474086,-5000.0,0.00043985,30]
[311213202,1704983474097,-500.0,0.00043987,43]
[311213203,1704983474107,-200.0,0.00043987,23]
[311213204,1704983474117,-500.0,0.00043987,5]
[311213205,1704983474127,-500.0,0.0004399,60]
[311213206,1704983474137,-469.89924901,0.0004399,120]
[311213207,1704983474147,-254.73,0.0004399,120]
[311213208,1704983474157,-242.0,0.0004399,120]
[311213209,1704983474166,-316.0,0.0004399,120]
[311213210,1704983474176,-449.0,0.0004399,120]
[311213211,1704983474186,-220.0,0.0004399,120]
[311213212,1704983474195,-344.0,0.0004399,120]
[311213213,1704983474205,-208.0,0.0004399,120]
[311213214,1704983474214,-457.0,0.0004399,120]
[311213215,1704983474224,-167.0,0.0004399,120]
[311213216,1704983474234,-150.0,0.00043991,60]
[311213217,1704983474244,-341.1467342,0.00043995,30]
[311213218,1704983474254,-150.0,0.00043999,4]
[311213219,1704983474264,-150.0,0.00043999,4]
[311213220,1704983474273,-151.0,0.00044,14]
[311213221,1704983474283,-151.0,0.00044,14]
[311213222,1704983474293,-151.0,0.00044,14]
[311213223,1704983474303,-100000.0,0.00044,4]
[311213224,1704983474313,-8163.28597647,0.00044,30]
[311213225,1704983474323,-40000.0,0.00044,120]
[311213226,1704983474332,-20879.00393964,0.00044,15]
[311213227,1704983474342,-150.0,0.00044,3]
[311213228,1704983474354,-1000.0,0.00044,30]
[311213229,1704983474363,-6370.81973778,0.00044,120]
[311213230,1704983474373,-24549.28499354,0.00044,2]
[311213231,1704983474383,-800.0,0.00044,2]
[311213232,1704983474393,-2110.0,0.00044,15]
[311213233,1704983474403,-247.68687689,0.00044,30]
[311213234,1704983474413,-300.0,0.00044,45]
[311213235,1704983474423,-46595.0,0.00044,7]
[311213236,1704983474433,-18702.77095628,0.00044,2]
[311213243,1704983679749,1484.94118125,0.000312,30]
[311213244,1704983977776,299.7,0.00027,20]
[311213245,1704984121416,526.44710821,0.00024993,7]
[311213246,1704984139395,302.80832559,0.00024993,7]
[311213249,1704984358119,-155.0,0.00024891,2]
[311213250,1704984358145,-150.0,0.00024892,2]
[311213251,1704984358169,-428.36331111,0.00024992,2]
[311213252,1704984390131,-237.17454164,0.00024992,2]
[311213254,1704984494626,-155.0,0.00024892,2]
[311213255,1704984494656,-161.88367688,0.00024893,2]
[311213256,1704984494687,-3680.71726147,0.00024992,2]
[311213257,1704984494713,-300.0,0.00024993,2]
[311213258,1704984494738,-150.0,0.00024993,2]
[311213259,1704984494764,-1007.116,0.00024994,2]
[311213260,1704984494789,-302.72152198,0.00024994,2]
[311213261,1704984494816,-164.22572481,0.00024994,2]
[311213262,1704984494855,-6572.75988181,0.00024995,2]
[311213263,1704984494884,-18618.76835732,0.00024996,2]
[311213264,1704984494911,-5034.16304217,0.00024998,2]
[311213265,1704984494941,-13550.52053056,0.00024998,2]
[311213266,1704984494966,-350.0,0.00025,3]
[311213267,1704984494990,-450.0,0.0002502,3]
[311213268,1704984495014,-357.4,0.0002502,2]
[311213269,1704984495040,-150.99,0.0002502,2]
[311213270,1704984495066,-1903.58,0.0002502,2]
[311213271,1704984495091,-404.27,0.0002502,2]
[311213272,1704984495115,-9075.51,0.0002502,2]
[311213273,1704984495141,-400.0,0.00027,3]
[311213274,1704984495166,-999.99,0.00027,2]
[311213275,1704984495194,-369.15,0.00027,2]
[311213276,1704984495218,-211.29,0.00027,2]
[311213277,1704984495243,-210.0,0.00027492,2]
[311213278,1704984495269,-161.88367686,0.00028294,2]
[311213279,1704984495297,-282.94,0.00028634,2]
[311213280,1704984495323,-450.0,0.00029,3]
[311213281,1704984495351,-704.97402885,0.0002998,3]
[311213282,1704984495378,-8093.03808412,0.0003,4]
[311213283,1704984495408,-155.0,0.0003,2]
[311213284,1704984495442,-450.0,0.0003002,3]
[311213285,1704984495476,-168.32,0.00030525,2]
[311213286,1704984495507,-408.94,0.00030565,2]
[311213287,1704984495541,-450.0,0.00030729,3]
[311213288,1704984495571,-211.91,0.00030772,2]
[311213289,1704984495604,-282.94,0.00030898,2]
[311213290,1704984495635,-348.5641,0.000309,2]
[311213291,1704984495669,-1020.4168,0.000309,2]
[311213292,1704984495705,-2131.29,0.00030912,2]
[311213293,1704984495736,-155.19345628,0.00030998,4]
[311213294,1704984495766,-629.83937771,0.00030998,4]
[311213295,1704984495794,-6428.45607218,0.00030998,4]
[311213296,1704984495823,-1426.83853958,0.00030998,2]